bitfinex-derivatives/quotes_BTCF0:USTF0_20251230
["timestamp","ask_amount","ask_price","bid_price","bid_amount"]
[1767117243116,0.0113095,88508.0,88481.0,0.0572]
[1767117243321,0.0572,88508.0,88490.0,0.0113117]
[1767117243930,0.0572,88508.0,88490.0,0.01148117]
[1767117245920,0.0572,88508.0,88493.0,0.0113113]
[1767117246225,0.00016947,88517.0,88497.0,0.0113107]
[1767117246427,0.15332,88516.0,88494.0,0.0113112]
[1767117246619,0.0113086,88515.0,88494.0,0.0113112]
[1767117247022,0.0113089,88512.0,88493.0,0.0113113]
[1767117247326,0.011309,88512.0,88491.0,0.0113116]
[1767117250131,0.00016947,88517.0,88490.0,0.09632947]
[1767117250315,0.0113072,88526.0,88503.0,0.0113101]
[1767117250522,0.05716,88525.0,88506.0,0.0113096]
[1767117251327,0.05716,88525.0,88491.0,0.05716]
[1767117251328,0.01147687,88524.0,88507.0,0.00016947]
[1767117253435,0.05716,88523.0,88507.0,0.00016947]
[1767117253625,0.05716,88523.0,88507.0,7e-08]
[1767117253825,0.0113084,88517.0,88507.0,7e-08]
[1767117254021,0.0113079,88521.0,88507.0,7e-08]
[1767117254423,0.0113083,88518.0,88507.0,7e-08]
[1767117254826,0.0113088,88513.0,88507.0,7e-08]
[1767117255034,0.05716,88512.0,88487.0,0.011312]
[1767117255334,0.068469,88512.0,88490.0,0.0113117]
[1767117255536,0.0113093,88509.0,88490.0,0.0113117]
[1767117255938,0.00016947,88508.0,88491.0,0.00016947]
[1767117257133,0.01131,88504.0,88491.0,0.00016947]
[1767117257336,0.0113105,88501.0,88491.0,0.00016947]
[1767117259737,0.00016947,88508.0,88491.0,0.00016947]
[1767117261038,0.00016947,88508.0,88492.0,0.0113115]
[1767117261443,0.00016947,88508.0,88491.0,0.00016947]
[1767117263036,0.0113096,88507.0,88491.0,0.00016947]
[1767117263437,0.00016947,88508.0,88492.0,0.0113115]
[1767117263745,0.05716,88523.0,88491.0,0.00016947]
[1767117264038,0.1074277,88522.0,88501.0,0.0113103]
[1767117264246,0.011308,88520.0,88491.0,0.00016947]
[1767117264438,0.0113082,88518.0,88498.0,0.0113107]
[1767117264839,0.00016947,88517.0,88498.0,0.0113107]
[1767117266548,0.00016947,88517.0,88494.0,0.05716]
[1767117266941,0.0113097,88506.0,88494.0,0.05716]
[1767117267140,0.00016947,88517.0,88494.0,0.05716]
[1767117267553,0.011309,88512.0,88494.0,0.05716]
[1767117268242,0.00016947,88517.0,88493.0,0.0113113]
[1767117268550,0.02458999,88516.0,88495.0,0.0113111]
[1767117268849,0.00016947,88517.0,88495.0,0.0113111]
[1767117269052,0.02459005,88516.0,88495.0,0.0113111]
[1767117269344,0.0246073,88515.0,88495.0,0.0113111]
[1767117269541,0.0246073,88514.0,88495.0,0.0113111]
[1767117269737,0.00016947,88517.0,88495.0,0.0113111]
[1767117269942,0.02460731,88516.0,88495.0,0.0113111]
[1767117270147,0.02460731,88515.0,88494.0,0.09612]
[1767117270447,0.00016947,88517.0,88494.0,0.09612]
[1767117270448,0.02460731,88514.0,88494.0,0.09612]
[1767117270649,0.02463221,88513.0,88492.0,0.0113114]
[1767117270848,0.0113104,88501.0,88491.0,0.00016947]
[1767117271157,0.0113103,88502.0,88491.0,0.00016947]
[1767117271541,0.0113105,88500.0,88491.0,0.00016947]
[1767117271745,0.09612,88512.0,88491.0,0.00016947]
[1767117271746,0.0113108,88498.0,88491.0,0.00016947]
[1767117271942,0.09612,88512.0,88473.0,0.19558]
[1767117272148,0.0113109,88497.0,88479.0,0.0113131]
[1767117272752,0.0113109,88497.0,88473.0,0.19558]
[1767117273050,0.00016947,88494.0,88476.0,0.00016947]
[1767117273443,0.00016947,88494.0,88476.0,0.01148297]
[1767117273640,0.00016947,88494.0,88478.0,0.0113132]
[1767117274546,0.01148067,88494.0,88478.0,0.0113132]
[1767117274955,0.00016947,88494.0,88476.0,0.00016947]
[1767117275251,0.00016947,88494.0,88454.0,0.0113162]
[1767117275447,0.09612,88499.0,88450.0,0.16878654]
[1767117275448,0.0113135,88476.0,88455.0,0.1645961]
[1767117276145,0.0113135,88476.0,88457.0,0.0113159]
[1767117276348,0.00016947,88475.0,88458.0,0.00016947]
[1767117276547,0.00016947,88475.0,88459.0,0.0113156]
[1767117276854,0.00016947,88475.0,88464.0,0.011315]
[1767117277058,0.00016947,88475.0,88461.0,0.0113154]
[1767117277949,0.00016947,88475.0,88458.0,0.00016947]
[1767117278347,0.00016947,88475.0,88462.0,0.0113152]
[1767117279349,0.00016947,88475.0,88460.0,0.16878654]
[1767117279555,0.00016947,88475.0,88461.0,0.0113154]
[1767117280954,0.00016947,88475.0,88460.0,0.16878654]
[1767117281151,0.00016947,88475.0,88458.0,0.00016947]
[1767117282349,0.00016947,88475.0,88459.0,0.0113156]
[1767117282549,0.00016947,88475.0,88458.0,0.00016947]
[1767117282751,0.00016947,88475.0,88463.0,0.0113151]
[1767117283059,0.0113129,88481.0,88463.0,0.0113151]
[1767117283352,0.09481711,88482.0,88458.0,0.00016947]
[1767117284151,0.00016947,88479.0,88458.0,0.00016947]
[1767117285251,0.0113135,88477.0,88458.0,0.01148527]
[1767117287349,0.0113135,88477.0,88460.0,0.0113155]
[1767117287546,0.00016947,88479.0,88460.0,0.0113155]
[1767117288263,0.0113133,88478.0,88460.0,0.0113155]
[1767117289556,0.0113133,88478.0,88458.0,0.00016947]
[1767117291258,0.0113136,88476.0,88458.0,0.00016947]
[1767117291963,0.0113135,88477.0,88458.0,0.00016947]
[1767117292349,0.0113137,88475.0,88458.0,0.00016947]
[1767117293266,0.011314,88473.0,88458.0,0.00016947]
[1767117295164,0.0113136,88476.0,88458.0,0.00016947]
[1767117295362,0.0113139,88474.0,88458.0,0.00016947]
[1767117295664,0.00016947,88479.0,88458.0,0.00016947]
[1767117297160,0.0113141,88472.0,88458.0,0.00016947]
[1767117297469,0.0113167,88452.0,88443.0,0.09616]
[1767117297665,0.15332,88462.0,88424.0,0.01088838]
[1767117297868,0.15332,88461.0,88425.0,0.15332]
[1767117298163,0.15332,88461.0,88425.0,0.16464]
[1767117298164,0.09616,88460.0,88425.0,0.16464]
[1767117298465,0.011317,88449.0,88434.0,0.00016958]
[1767117298864,0.00011821,88448.0,88434.0,0.00016958]
[1767117299057,0.00011821,88448.0,88435.0,0.0113187]
[1767117299262,0.00016958,88451.0,88437.0,0.0113184]
[1767117299568,0.00011958,88451.0,88435.0,0.05716]
[1767117300661,0.00011958,88451.0,88441.0,0.0113179]
[1767117300857,0.09616,88458.0,88441.0,0.0113179]
[1767117301064,0.1074758,88458.0,88438.0,0.0113183]
[1767117301361,0.09616,88458.0,88436.0,0.0113186]
[1767117301766,0.00016958,88456.0,88435.0,0.15332]
[1767117301965,0.011317,88450.0,88435.0,0.15332]
[1767117302166,0.0113168,88451.0,88435.0,0.15332]
[1767117302870,0.0113166,88453.0,88435.0,0.1646387]
[1767117303675,0.01148568,88456.0,88438.0,0.0113183]
[1767117303862,0.01148568,88456.0,88435.0,0.1646387]
[1767117304061,0.0113164,88454.0,88435.0,0.1646387]
[1767117305067,0.00016958,88456.0,88435.0,0.15332]
[1767117305268,0.011312,88488.0,88436.0,0.0113186]
[1767117305567,0.0113147,88467.0,88448.0,0.011317]
[1767117305764,0.0113153,88463.0,88449.0,0.05716]
[1767117305965,0.0113158,88458.0,88450.0,0.05716]
[1767117306166,0.0113153,88462.0,88450.0,0.05716]
[1767117306471,0.09616,88473.0,88450.0,0.05716]
[1767117306472,0.00016958,88465.0,88450.0,0.05716]
[1767117306668,0.0113161,88457.0,88450.0,0.05716]
[1767117306974,0.0113163,88455.0,88448.0,0.05716]
[1767117307871,0.00016958,88465.0,88448.0,0.05716]
[1767117307872,0.0113156,88460.0,88448.0,0.05716]
[1767117308173,0.00016958,88465.0,88448.0,0.05716]
[1767117308174,0.0113154,88462.0,88448.0,0.05716]
[1767117308669,0.00016958,88465.0,88448.0,0.05716]
[1767117309175,0.01148458,88465.0,88448.0,0.05716]
[1767117309376,0.00016958,88465.0,88448.0,0.05716]
[1767117309769,0.0113151,88464.0,88448.0,0.05716]
[1767117310075,0.0113154,88462.0,88448.0,0.05716]
[1767117313377,0.00016958,88465.0,88448.0,0.05716]
[1767117313573,0.0113151,88464.0,88448.0,0.05716]
[1767117313781,0.0113154,88462.0,88448.0,0.05716]
[1767117314376,0.0112654,88462.0,88448.0,0.05716]
[1767117314772,0.01148458,88465.0,88448.0,0.05716]
[1767117315074,0.09616,88470.0,88448.0,0.05716]
[1767117315280,0.02450021,88469.0,88448.0,0.05716]
[1767117315476,0.02450021,88468.0,88448.0,0.05716]
[1767117315781,0.0113137,88475.0,88448.0,0.05716]
[1767117315782,0.02450021,88467.0,88448.0,0.05716]
[1767117315980,0.02450021,88466.0,88448.0,0.05716]
[1767117316179,0.0113152,88464.0,88448.0,0.05716]
[1767117316579,0.00016952,88465.0,88447.0,8e-08]
[1767117316779,0.0113163,88455.0,88447.0,8e-08]
[1767117316975,0.02450179,88464.0,88447.0,8e-08]
[1767117316976,0.0113168,88451.0,88447.0,8e-08]
[1767117317276,0.0113166,88452.0,88447.0,8e-08]
[1767117319985,0.0113153,88463.0,88447.0,8e-08]
[1767117320284,0.02450758,88462.0,88447.0,8e-08]
[1767117320583,0.09632952,88465.0,88447.0,8e-08]
[1767117320779,0.0245097,88464.0,88447.0,8e-08]
[1767117320979,0.0245097,88463.0,88447.0,8e-08]
[1767117321180,0.0113164,88454.0,88447.0,8e-08]
[1767117322084,0.0113167,88452.0,88447.0,8e-08]
[1767117322280,0.09632952,88465.0,88447.0,8e-08]
[1767117322483,0.02451589,88464.0,88447.0,8e-08]
[1767117322682,0.02451589,88463.0,88447.0,8e-08]
[1767117322871,0.02451589,88462.0,88447.0,8e-08]
[1767117323074,0.02451589,88461.0,88447.0,8e-08]
[1767117323275,0.0113164,88454.0,88447.0,8e-08]
[1767117324681,0.0113151,88464.0,88447.0,8e-08]
[1767117324886,0.0113168,88451.0,88447.0,8e-08]
[1767117326281,0.0113164,88454.0,88447.0,8e-08]
[1767117328789,0.0113169,88450.0,88447.0,8e-08]
[1767117328991,0.0113169,88450.0,88436.0,0.04844]
[1767117329287,0.09632952,88465.0,88436.0,0.04844]
[1767117329484,0.02455651,88464.0,88436.0,0.0597585]
[1767117329685,0.02455651,88463.0,88436.0,0.0597585]
[1767117329889,0.02455651,88462.0,88441.0,0.00016958]
[1767117330090,0.09632952,88465.0,88441.0,0.00016958]
[1767117330392,0.02455671,88464.0,88441.0,0.00016958]
[1767117330591,0.02455671,88463.0,88441.0,0.00016958]
[1767117330782,0.0113163,88455.0,88441.0,0.00016958]
[1767117330983,0.09632952,88465.0,88441.0,0.00016958]
[1767117331190,0.0113163,88455.0,88441.0,0.00016958]
[1767117334085,0.0113151,88464.0,88441.0,0.00016958]
[1767117334285,0.0245574,88463.0,88441.0,0.00016958]
[1767117334485,0.0245574,88462.0,88441.0,0.00016958]
[1767117334686,0.0113169,88450.0,88441.0,0.00016958]
[1767117335987,0.0113165,88453.0,88441.0,0.00016958]
[1767117338496,0.0113152,88463.0,88441.0,0.00016958]
[1767117338694,0.0113171,88449.0,88441.0,0.00016958]
[1767117338897,0.0113171,88449.0,88441.0,8e-08]
[1767117339197,0.0113181,88441.0,88427.0,0.15332]
[1767117339389,0.011318,88442.0,88426.0,0.09616]
[1767117339591,0.0113175,88445.0,88426.0,0.09616]
[1767117340194,0.00016958,88444.0,88427.0,0.00016958]
[1767117340399,0.0113164,88454.0,88427.0,0.00016958]
[1767117340583,0.0113169,88450.0,88431.0,0.0113192]
[1767117340788,0.0113169,88450.0,88427.0,0.00016958]
[1767117340789,0.0113172,88448.0,88428.0,0.0113197]
[1767117340989,0.0113172,88448.0,88429.0,0.0113195]
[1767117341388,0.0113174,88446.0,88429.0,0.0113195]
[1767117343189,0.0113177,88444.0,88427.0,0.00016958]
[1767117344194,0.00016958,88447.0,88427.0,0.00016958]
[1767117345000,0.0113178,88443.0,88427.0,0.00016958]
[1767117345994,0.0113181,88441.0,88427.0,0.00016958]
[1767117346193,0.0113176,88444.0,88427.0,0.00016958]
[1767117346499,0.0113176,88444.0,88430.0,0.16905216]
[1767117348502,0.011318,88441.0,88430.0,0.16905216]
[1767117348702,0.011318,88441.0,88427.0,0.00016958]
[1767117348904,0.011318,88441.0,88430.0,0.16905216]
[1767117349098,0.011318,88441.0,88427.0,0.00016958]
[1767117349307,0.011318,88441.0,88430.0,0.16905216]
[1767117350403,0.0113183,88439.0,88427.0,0.00016958]
[1767117350704,0.0113183,88439.0,88430.0,0.16905216]
[1767117351203,0.00016958,88447.0,88430.0,0.16905216]
[1767117352005,0.0113178,88443.0,88430.0,0.16905216]
[1767117354403,0.0113181,88441.0,88430.0,0.16905216]
[1767117355397,0.00016958,88447.0,88430.0,0.16905216]
[1767117356199,0.00016958,88447.0,88431.0,0.05712]
[1767117356805,0.0113184,88439.0,88431.0,0.05712]
[1767117357004,0.00016958,88447.0,88427.0,0.00016958]
[1767117357005,0.0113189,88434.0,88427.0,0.00016958]
[1767117357207,0.0113185,88437.0,88427.0,0.00016958]
[1767117357403,0.00016958,88447.0,88427.0,0.00016958]
[1767117357610,0.0962,88446.0,88430.0,0.16905216]
[1767117357902,0.011318,88441.0,88430.0,0.16905216]
[1767117358293,0.0113181,88441.0,88427.0,0.00016958]
[1767117358505,0.0113183,88439.0,88427.0,0.00016958]
[1767117358702,0.0113183,88439.0,88429.0,0.16905216]
[1767117359306,0.0962,88446.0,88429.0,0.16905216]
[1767117360301,0.0113187,88436.0,88429.0,2.16e-06]
[1767117360497,0.0962,88446.0,88422.0,0.0962]
[1767117360498,0.0113192,88432.0,88422.0,0.0962]
[1767117360701,0.16905216,88440.0,88413.0,0.0962]
[1767117360898,0.16905216,88440.0,88414.0,0.05712]
[1767117361300,0.16905216,88440.0,88420.0,0.16905216]
[1767117361499,0.16905216,88440.0,88414.0,0.0684414]
[1767117361500,0.0113188,88435.0,88421.0,0.00016958]
[1767117361695,0.0113191,88433.0,88421.0,0.00016958]
[1767117362208,0.0113187,88436.0,88421.0,0.00016958]
[1767117362505,0.011319,88434.0,88421.0,0.00016958]
[1767117362808,0.05728958,88447.0,88421.0,0.00016958]
[1767117362809,0.0113181,88441.0,88424.0,0.16905216]
[1767117363012,0.0113181,88441.0,88430.0,0.16905216]
[1767117363395,0.15332,88444.0,88422.0,0.05712]
[1767117364017,0.02458511,88443.0,88422.0,0.05712]
[1767117364211,0.15332,88444.0,88422.0,0.05712]
[1767117364400,0.02458367,88443.0,88422.0,0.05712]
[1767117364700,0.15332,88444.0,88422.0,0.05712]
[1767117364902,0.02458367,88443.0,88422.0,0.05712]
[1767117365209,0.0113192,88432.0,88422.0,0.05712]
[1767117365404,0.16905216,88440.0,88422.0,0.05712]
[1767117365707,0.0113193,88432.0,88421.0,0.00016958]
[1767117366704,0.0113188,88435.0,88421.0,0.00016958]
[1767117367206,0.0113184,88438.0,88421.0,0.00016958]
[1767117367601,0.011318,88441.0,88428.0,0.16905216]
[1767117367801,0.05712,88438.0,88428.0,0.16905216]
[1767117368013,0.05712,88438.0,88421.0,0.00016958]
[1767117368913,0.0113188,88435.0,88421.0,0.00016958]
[1767117370214,0.0113187,88436.0,88421.0,0.00016958]
[1767117370798,0.05712,88438.0,88421.0,0.00016958]
[1767117371003,0.0113185,88437.0,88421.0,0.00016958]
[1767117372101,0.05712,88438.0,88422.0,0.0113204]
[1767117372310,0.05712,88438.0,88421.0,0.00016958]
[1767117372708,0.0684384,88438.0,88421.0,0.00016958]
[1767117374214,0.0113184,88438.0,88421.0,0.00016958]
[1767117374708,0.0113187,88436.0,88421.0,0.00016958]
[1767117375508,0.0684383,88439.0,88421.0,0.00016958]
[1767117375797,0.0113186,88437.0,88421.0,0.00016958]
[1767117377315,0.05712,88439.0,88421.0,0.00016958]
[1767117377512,0.0113184,88438.0,88421.0,0.00016958]
[1767117377709,0.00016958,88447.0,88428.0,0.16905216]
[1767117378015,0.0113162,88455.0,88437.0,0.16905216]
[1767117378208,0.05712,88456.0,88440.0,0.16905216]
[1767117378407,0.0113165,88453.0,88440.0,0.16905216]
[1767117378808,0.00016958,88455.0,88440.0,0.16905216]
[1767117379018,0.011318,88442.0,88438.0,8e-08]
[1767117379209,0.0113183,88440.0,88430.0,0.16905216]
[1767117379412,0.0113177,88444.0,88431.0,0.05712]
[1767117380118,0.0113173,88447.0,88431.0,0.05712]
[1767117380808,0.011317,88449.0,88437.0,0.16905216]
[1767117381120,0.0113164,88454.0,88439.0,0.16905216]
[1767117381418,0.0113164,88454.0,88444.0,0.16905216]
[1767117381620,0.01244184,88455.0,88444.0,0.16905216]
[1767117381817,0.0113164,88454.0,88444.0,0.16905216]
[1767117382019,0.3253,88477.0,88444.0,0.16905216]
[1767117382225,0.0113158,88459.0,88450.0,0.16905216]
[1767117383617,0.15332,88461.0,88450.0,0.16905216]
[1767117384118,0.0113149,88466.0,88450.0,0.16905216]
[1767117384323,0.05712,88468.0,88456.0,0.16905216]
[1767117384522,0.05712,88469.0,88458.0,0.16905216]
[1767117385216,0.05712,88469.0,88459.0,0.16905216]
[1767117385617,0.0684345,88469.0,88459.0,0.16905216]
[1767117385918,0.05712,88469.0,88459.0,0.16905216]
[1767117386838,0.011312,88488.0,88459.0,0.16905216]
[1767117387031,0.17786644,88487.0,88470.0,6e-08]
[1767117387228,0.02454644,88486.0,88465.0,0.00016958]
[1767117387442,0.02454644,88485.0,88465.0,0.00016958]
[1767117387741,0.02454644,88484.0,88465.0,0.00016958]
[1767117387942,0.02454644,88483.0,88465.0,0.00016958]
[1767117388143,0.02454644,88482.0,88470.0,0.16905216]
[1767117388337,0.1998,88502.0,88470.0,0.16905216]
[1767117388338,0.17786644,88481.0,88470.0,0.16905216]
[1767117388538,0.0962,88483.0,88470.0,0.16905216]
[1767117388740,0.02453086,88482.0,88470.0,0.16905216]
[1767117389037,0.0684329,88482.0,88470.0,0.16905216]
[1767117389649,0.0113131,88480.0,88470.0,0.16905216]
[1767117390145,0.05712,88482.0,88470.0,0.16905216]
[1767117393246,0.0113124,88486.0,88470.0,0.16905216]
[1767117393445,0.0113124,88486.0,88476.0,0.16905216]
[1767117394048,0.0113126,88484.0,88476.0,0.16905216]
[1767117394646,0.0683922,88487.0,88476.0,0.16905216]
[1767117394951,0.0113116,88492.0,88477.0,0.05708]
[1767117395153,0.05708,88495.0,88482.0,0.16905216]
[1767117395342,0.05708,88496.0,88482.0,0.16905216]
[1767117395747,0.0113117,88491.0,88482.0,0.16905216]
[1767117396642,0.05708,88496.0,88482.0,0.16905216]
[1767117396948,0.05708,88496.0,88482.0,0.22613216]
[1767117397354,0.05708,88496.0,88486.0,0.16905216]
[1767117397843,0.05708,88496.0,88486.0,6e-08]
[1767117398144,0.05708,88496.0,88482.0,0.05708]
[1767117398349,0.0113115,88492.0,88482.0,0.05708]
[1767117399133,0.05708,88496.0,88482.0,0.05708]
[1767117399134,0.0113119,88489.0,88482.0,0.05708]
[1767117399537,0.0113115,88492.0,88482.0,0.05708]
[1767117400046,0.18036146,88510.0,88482.0,0.05708]
[1767117400047,0.09616,88511.0,88482.0,0.22613216]
[1767117400257,0.0113103,88502.0,88500.0,6e-08]
[1767117400440,0.05708,88504.0,88488.0,0.05708]
[1767117400646,0.16905216,88500.0,88480.0,0.16905216]
[1767117400945,0.0113119,88489.0,88480.0,0.16905216]
[1767117401447,0.05708,88495.0,88480.0,0.16905216]
[1767117401448,0.0113115,88492.0,88480.0,0.16905216]
[1767117402151,0.05724958,88495.0,88480.0,0.16905216]
[1767117402351,0.05724958,88495.0,88485.0,0.16905216]
[1767117403240,0.0113112,88494.0,88485.0,0.16905216]
[1767117403446,0.16905216,88510.0,88485.0,0.16905216]
[1767117403447,0.0113107,88498.0,88485.0,0.16905216]
[1767117403648,0.05708,88497.0,88485.0,0.16905216]
[1767117403842,0.05708,88497.0,88477.0,0.00016958]
[1767117404046,0.0113126,88484.0,88477.0,8e-08]
[1767117404246,0.0113126,88484.0,88470.0,0.16905216]
[1767117405355,0.00016958,88486.0,88470.0,0.16905216]
[1767117405651,0.0113124,88485.0,88470.0,0.16905216]
[1767117406252,0.0113128,88483.0,88470.0,0.16905216]
[1767117406445,0.011313,88481.0,88468.0,0.00016958]
[1767117411149,0.0113132,88479.0,88468.0,0.00016958]
[1767117411447,0.00016958,88486.0,88468.0,0.00016958]
[1767117412253,0.02453288,88485.0,88468.0,0.00016958]
[1767117412454,0.02453288,88484.0,88468.0,0.00016958]
[1767117412657,0.0113143,88471.0,88468.0,8e-08]
[1767117412857,0.0113149,88466.0,88447.0,0.09616]
[1767117413049,0.0113149,88466.0,88448.0,0.05708]
[1767117413950,0.01148448,88466.0,88448.0,0.05724958]
[1767117415453,0.00016958,88466.0,88448.0,0.00016958]
[1767117415847,0.00016958,88466.0,88448.0,0.05724958]
[1767117416751,0.0113154,88462.0,88448.0,0.05724958]
[1767117416947,0.0113153,88463.0,88448.0,0.05724958]
[1767117417753,0.0113155,88461.0,88448.0,0.05724958]
[1767117420961,0.0113158,88459.0,88448.0,0.05724958]
[1767117421948,0.00016958,88466.0,88448.0,0.05724958]
[1767117421949,0.00016958,88466.0,88448.0,8e-08]
[1767117422155,0.0113169,88450.0,88448.0,8e-08]
[1767117422349,0.0113158,88459.0,88432.0,0.05708]
[1767117422859,0.05708,88460.0,88432.0,0.05708]
[1767117423258,0.0113168,88451.0,88432.0,0.0683991]
[1767117423460,0.0113168,88451.0,88433.0,0.00016958]
[1767117423963,0.0113171,88449.0,88433.0,0.00016958]
[1767117428065,0.0113173,88447.0,88433.0,0.00016958]
[1767117428654,0.0113169,88450.0,88433.0,0.00016958]
[1767117428854,0.09616,88457.0,88436.0,0.0113186]
[1767117429063,0.1074761,88457.0,88433.0,0.00016958]
[1767117429259,0.0113161,88457.0,88433.0,0.00016958]
[1767117429965,0.0113161,88457.0,88437.0,0.0113185]
[1767117430565,0.0113163,88455.0,88437.0,0.0113185]
[1767117433867,0.09616,88462.0,88433.0,0.01148848]
[1767117434171,0.0113173,88447.0,88433.0,0.00016958]
[1767117434359,0.0113175,88446.0,88433.0,0.00016958]
[1767117434761,0.09616,88462.0,88433.0,0.00016958]
[1767117434762,0.0113176,88445.0,88433.0,0.00016958]
[1767117435961,0.0113187,88436.0,88433.0,8e-08]
[1767117436163,0.0113192,88432.0,88418.0,0.0423]
[1767117436670,0.0113188,88435.0,88418.0,0.0423]
[1767117437271,0.0113184,88439.0,88419.0,0.0113207]
[1767117437473,0.0113184,88439.0,88421.0,0.0113205]
[1767117437669,0.09616,88447.0,88418.0,0.04246958]
[1767117437874,0.0113174,88446.0,88426.0,0.0113199]
[1767117438170,0.0113177,88444.0,88426.0,0.0113199]
[1767117440973,0.0113179,88442.0,88423.0,0.0113203]
[1767117442076,0.00016958,88448.0,88432.0,0.0113191]
[1767117442278,0.00016958,88448.0,88429.0,0.05704]
[1767117443172,0.00016958,88448.0,88430.0,0.0113193]
[1767117443367,0.0113175,88446.0,88429.0,0.05704]
[1767117443877,0.0113179,88443.0,88429.0,0.05704]
[1767117444477,0.00016958,88448.0,88429.0,0.05704]
[1767117444679,0.0113183,88439.0,88424.0,0.0962]
[1767117445271,0.08036782,88476.0,88432.0,0.0113191]
[1767117445471,0.0113161,88457.0,88435.0,0.0113188]
[1767117446176,0.0962,88463.0,88436.0,0.0962]
[1767117446473,0.0113143,88470.0,88444.0,0.0113176]
[1767117446680,0.0962,88469.0,88444.0,0.0683576]
[1767117447380,0.0113146,88468.0,88444.0,0.0683576]
[1767117447581,0.00016958,88465.0,88444.0,0.0683576]
[1767117448178,0.00016958,88465.0,88444.0,0.05704]
[1767117450780,0.0113151,88464.0,88444.0,0.05704]
[1767117450980,0.01148458,88465.0,88444.0,0.05704]
[1767117451172,0.00016958,88465.0,88448.0,0.011317]
[1767117452887,0.00016958,88465.0,88445.0,0.0113174]
[1767117453480,0.00016958,88465.0,88448.0,0.011317]
[1767117454982,0.00016958,88465.0,88448.0,0.09616]
[1767117455782,0.00016958,88465.0,88455.0,0.0113162]
[1767117458287,0.00016958,88465.0,88452.0,0.0113166]
[1767117458882,0.00016958,88465.0,88455.0,0.0113162]
[1767117459890,0.00016958,88465.0,88448.0,0.09616]
[1767117459891,0.00016958,88465.0,88452.0,0.0113166]
[1767117460388,0.0113141,88472.0,88452.0,0.0113166]
[1767117461180,0.00016958,88471.0,88448.0,0.09616]
[1767117461487,0.00016958,88471.0,88452.0,0.0113165]
[1767117461789,0.00016958,88471.0,88448.0,0.09616]
[1767117461989,0.00016958,88471.0,88454.0,0.0113162]
[1767117462187,0.00016958,88471.0,88441.0,0.00016958]
[1767117462386,0.0113146,88468.0,88441.0,0.00016958]
[1767117462590,0.0113157,88459.0,88441.0,0.00016958]
[1767117464890,0.0113157,88459.0,88442.0,0.0113179]
[1767117465392,0.0113157,88459.0,88441.0,0.00016958]
[1767117467093,0.0113154,88462.0,88441.0,0.00016958]
[1767117467292,0.0113154,88462.0,88441.0,0.01148748]
[1767117469590,0.0113159,88458.0,88441.0,0.00016958]
[1767117470091,0.0113158,88459.0,88441.0,0.00016958]
[1767117470286,0.1532,88464.0,88441.0,0.00016958]
[1767117470690,0.0113158,88459.0,88441.0,0.00016958]
[1767117471091,0.0113154,88462.0,88441.0,0.00016958]
[1767117471297,0.0113154,88462.0,88449.0,0.16899175]
[1767117471599,0.05704,88464.0,88449.0,0.16899175]
[1767117472099,0.0113153,88463.0,88449.0,0.16899175]
[1767117475612,0.0113155,88461.0,88449.0,0.16899175]
[1767117475802,0.0113155,88461.0,88445.0,0.0113174]
[1767117476807,0.0113155,88461.0,88450.0,0.16899175]
[1767117478812,0.0683551,88464.0,88450.0,0.16899175]
[1767117480216,0.05704,88464.0,88450.0,0.16899175]
[1767117480515,0.00016958,88471.0,88454.0,0.16899175]
[1767117480708,0.00016958,88471.0,88451.0,0.09616]
[1767117480709,0.00016958,88471.0,88461.0,0.0113154]
[1767117481114,0.00016958,88471.0,88460.0,0.16899175]
[1767117482816,0.00016958,88471.0,88461.0,0.0113154]
[1767117483018,0.00016958,88471.0,88460.0,0.16899175]
[1767117484108,0.00016958,88471.0,88455.0,0.057]
[1767117484314,0.0113161,88457.0,88443.0,0.057]
[1767117484716,0.0113157,88459.0,88443.0,0.057]
[1767117488420,0.011316,88457.0,88443.0,0.057]
[1767117490120,0.057,88463.0,88443.0,0.057]
[1767117490313,0.057,88463.0,88443.0,0.0683177]
[1767117490719,0.057,88463.0,88445.0,0.0113174]
[1767117490916,0.057,88463.0,88453.0,0.16899175]
[1767117491111,0.057,88469.0,88453.0,0.16899175]
[1767117491311,0.057,88469.0,88460.0,0.16899175]
[1767117491810,0.00016958,88471.0,88462.0,0.0113152]
[1767117492013,8e-08,88471.0,88467.0,0.0113146]
[1767117492518,8e-08,88471.0,88469.0,0.0113144]
[1767117493020,8e-08,88471.0,88461.0,0.00016958]
[1767117493323,8e-08,88471.0,88467.0,0.0113146]
[1767117493715,8e-08,88471.0,88469.0,0.0113143]
[1767117494124,8e-08,88471.0,88466.0,0.0113147]
[1767117494318,8e-08,88471.0,88461.0,0.00016958]
[1767117497119,8e-08,88471.0,88467.0,0.0113146]
[1767117499120,8e-08,88471.0,88461.0,0.00016958]
[1767117499616,8e-08,88471.0,88461.0,0.16916133]
[1767117500321,8e-08,88471.0,88469.0,0.0113144]
[1767117501619,8e-08,88471.0,88467.0,0.0113146]
[1767117502020,8e-08,88471.0,88461.0,0.16916133]
[1767117502221,8e-08,88471.0,88464.0,0.0113149]
[1767117502927,8e-08,88471.0,88466.0,0.0113147]
[1767117503323,8e-08,88471.0,88461.0,0.16916133]
[1767117503530,8e-08,88471.0,88464.0,0.0113149]
[1767117504318,8e-08,88471.0,88466.0,0.0113147]
[1767117505228,0.0113115,88492.0,88463.0,0.057]
[1767117505527,0.0113097,88506.0,88463.0,0.057]
[1767117505528,0.0113118,88490.0,88468.0,0.0113145]
[1767117505730,0.011312,88488.0,88470.0,0.16899175]
[1767117507728,0.0113124,88486.0,88465.0,0.0113149]
[1767117508026,0.0113124,88486.0,88470.0,0.16899175]
[1767117508420,0.1074719,88489.0,88470.0,0.16899175]
[1767117508923,0.1074719,88489.0,88471.0,0.0113141]
[1767117513332,0.0113122,88487.0,88468.0,0.0113145]
[1767117513535,0.0113122,88487.0,88470.0,0.18030595]
[1767117514338,0.0113122,88487.0,88470.0,0.0113142]
[1767117514638,0.011312,88488.0,88470.0,0.18030595]
[1767117514940,0.0113123,88486.0,88470.0,0.18030595]
[1767117515238,0.057,88485.0,88472.0,0.011314]
[1767117515439,0.057,88485.0,88470.0,0.16899175]
[1767117515625,0.057,88485.0,88470.0,0.18030595]
[1767117518340,0.057,88485.0,88470.0,0.0113142]
[1767117518641,0.057,88485.0,88470.0,0.18030595]
[1767117521038,0.0113126,88484.0,88470.0,0.16899175]
[1767117521239,0.057,88485.0,88463.0,0.057]
[1767117521536,0.011314,88473.0,88463.0,0.057]
[1767117521735,0.16899175,88480.0,88461.0,0.09632958]
[1767117521736,0.05696,88477.0,88461.0,0.00016958]
[1767117521930,0.0113142,88471.0,88461.0,0.00016958]
[1767117522937,0.0113146,88468.0,88461.0,0.00016958]